bitfinex-derivatives/quotes_SOLF0:USTF0_20241227
["timestamp","ask_amount","ask_price","bid_price","bid_amount"]
[1735340126588,2.7107,184.72,184.7,1.5614]
[1735340126786,2.7107,184.72,184.71,3.08]
[1735340127986,10.79037999,184.73,184.71,3.08]
[1735340130188,2.7106,184.73,184.71,3.08]
[1735340136492,8.07977999,184.74,184.71,3.08]
[1735340138087,8.07977999,184.75,184.71,5.7908]
[1735340138782,10.79007999,184.75,184.71,5.7908]
[1735340139384,8.07977999,184.78,184.71,3.08]
[1735340139589,8.07977999,184.78,184.72,9.71057999]
[1735340139887,8.07977999,184.8,184.72,9.71057999]
[1735340140192,8.07977999,184.8,184.76,2.71]
[1735340140396,8.07977999,184.8,184.77,3.08]
[1735340142787,69.56907186,184.95,184.84,16.28]
[1735340142989,69.56907186,184.95,184.78,66.96]
[1735340142990,22.44963897,184.92,184.85,16.28]
[1735340143194,59.86570392,184.93,184.91,8.07977999]
[1735340143398,59.86570392,184.93,184.92,3.3]
[1735340143990,8.07977999,185.0,184.92,71.64042089]
[1735340144191,4.2827,185.03,184.92,71.64042089]
[1735340144192,8.07977999,185.02,184.93,8.07977999]
[1735340144795,1.5765,185.03,184.95,10.78707999]
[1735340145089,1.5765,185.03,184.95,8.07977999]
[1735340145396,1.5765,185.03,184.95,15.45727103]
[1735340145791,1.5765,185.03,184.95,7.37749104]
[1735340145994,1.5765,185.03,184.96,5.55433992]
[1735340146397,1.5765,185.03,184.94,10.08479104]
[1735340147188,1.5765,185.03,184.95,49.49493865]
[1735340147493,1.5765,185.03,184.96,7.37749104]
[1735340147692,3.3,185.05,184.96,7.37749104]
[1735340147891,1.6854,185.04,184.97,5.4724931]
[1735340148496,1.561,185.09,184.97,21.41361951]
[1735340148693,1.701,185.07,184.99,7.37749104]
[1735340149294,1.701,185.07,185.0,5.4724931]
[1735340150097,1.701,185.07,185.01,15.55638414]
[1735340150690,1.561,185.09,185.03,7.37749104]
[1735340151497,4.2663,185.09,185.04,5.4724931]
[1735340151993,4.2663,185.09,185.05,5.4724931]
[1735340153200,1.689,185.08,185.06,5.4724931]
[1735340153891,4.2663,185.09,185.07,26.45478715]
[1735340154295,1.561,185.09,185.07,26.45478715]
[1735340154497,1.561,185.09,185.03,7.29948812]
[1735340155195,15.94112641,185.15,185.03,7.29948812]
[1735340155401,1.576,185.14,185.08,10.00488812]
[1735340155901,1.576,185.14,185.09,12.33058526]
[1735340156102,3.2227,185.14,185.09,12.33058526]
[1735340156498,3.2227,185.14,185.1,12.33058526]
[1735340157199,3.2227,185.14,185.09,7.29948812]
[1735340157395,3.2227,185.14,185.09,10.00468812]
[1735340157801,3.2227,185.14,185.11,7.29948812]
[1735340158802,3.2227,185.14,185.12,12.27389161]
[1735340159800,2.7045,185.15,185.13,46.76885362]
[1735340160298,2.7045,185.15,185.13,12.25141311]
[1735340160506,2.7045,185.14,185.13,12.25141311]
[1735340160714,12.64112641,185.15,185.12,21.89846438]
[1735340161300,2.705,185.11,185.08,21.89846438]
[1735340161906,2.705,185.11,185.09,4.95973021]
[1735340162409,2.7048,185.13,185.09,4.95973021]
[1735340162809,12.64112641,185.15,185.07,2.7055]
[1735340163404,2.7048,185.13,185.07,2.7055]
[1735340164107,2.7049,185.12,185.08,4.7680566]
[1735340164315,3.3,185.11,185.08,2.2167566]
[1735340164605,3.3,185.11,185.06,5.90037749]
[1735340164606,12.64112641,185.09,185.06,5.90037749]
[1735340165007,12.64112641,185.09,184.97,101.28881993]
[1735340165612,2.7063,185.02,184.97,101.28881993]
[1735340166013,2.7063,185.02,184.97,72.71099219]
[1735340166212,2.7063,185.02,184.97,12.64112641]
[1735340169618,2.7064,185.01,184.97,12.64112641]
[1735340170317,2.7064,185.01,184.96,4.2855]
[1735340171819,2.7064,185.01,184.97,8.08856712]
[1735340172016,2.7064,185.01,184.97,10.79556712]
[1735340172517,2.7063,185.02,184.97,10.79556712]
[1735340173417,11.38856712,185.06,184.97,2.707]
[1735340173621,2.7064,185.01,184.97,2.707]
[1735340175020,10.79486712,185.03,184.97,2.707]
[1735340175320,2.7063,185.03,184.97,2.707]
[1735340175921,2.7063,185.02,184.97,2.707]
[1735340177619,1.5498,185.16,184.96,1.5784]
[1735340177620,1.5498,185.16,184.96,9.66696712]
[1735340177815,8.08856712,185.05,184.96,9.66696712]
[1735340178321,10.79436712,185.05,184.96,9.66696712]
[1735340178523,10.79436712,185.05,184.97,109.95414091]
[1735340179631,10.79436712,185.05,185.0,2.7065]
[1735340181525,2.706,185.04,185.0,2.7065]
[1735340184626,2.7058,185.06,185.01,2.7063]
[1735340184923,10.79436712,185.06,185.01,2.7063]
[1735340185122,8.08856712,185.06,185.01,2.7063]
[1735340186427,2.7059,185.05,185.01,2.7063]
[1735340187229,2.7061,185.04,184.99,2.7066]
[1735340187428,8.08856712,185.04,184.99,2.7066]
[1735340188026,8.08856712,185.04,184.97,3.28]
[1735340188229,8.08856712,185.02,184.97,2.707]
[1735340189529,2.7066,185.0,184.97,2.707]
[1735340189725,8.08856712,185.02,184.97,2.707]
[1735340190531,2.7065,185.01,184.97,2.707]
[1735340192231,8.08856712,185.0,184.96,1.5784]
[1735340193532,2.707,184.97,184.96,1.5784]
[1735340194637,2.7072,184.96,184.95,1.6785]
[1735340199441,8.08856712,185.0,184.95,1.6785]
[1735340200544,2.7068,184.99,184.95,1.6785]
[1735340200744,8.08856712,184.99,184.95,1.6785]
[1735340201846,2.7071,184.97,184.95,1.6785]
[1735340202043,8.08856712,184.99,184.95,1.6785]
[1735340203448,2.7071,184.97,184.95,1.6785]
[1735340222160,8.08856712,185.0,184.95,1.6785]
[1735340222355,2.7072,184.96,184.93,2.7076]
[1735340228865,8.08856712,185.0,184.93,2.7076]
[1735340229063,2.707,184.97,184.93,2.7076]
[1735340236874,2.707,184.97,184.92,2.7076]
[1735340237068,2.707,184.97,184.91,3.28]
[1735340238479,2.707,184.97,184.93,2.7075]
[1735340241974,2.7072,184.96,184.93,2.7075]
[1735340244679,8.08856712,184.98,184.9,1.6872]
[1735340244877,8.08856712,184.94,184.9,1.6872]
[1735340245072,8.08856712,184.92,184.89,1.6166]
[1735340245379,2.708,184.91,184.89,1.6166]
[1735340246780,2.708,184.9,184.87,1.6876]
[1735340260588,8.08856712,184.92,184.87,1.6876]
[1735340260890,2.7082,184.89,184.86,4.2772]
[1735340265794,2.708,184.91,184.86,1.5686]
[1735340266097,8.08856712,184.92,184.86,1.5686]
[1735340266892,2.7083,184.89,184.86,1.5686]
[1735340269100,2.7085,184.87,184.84,9.64166712]
[1735340269797,2.7085,184.87,184.84,1.5531]
[1735340276902,3.28,184.97,184.86,2.7086]
[1735340277104,8.08856712,184.9,184.86,2.7086]
[1735340282812,8.08856712,184.9,184.85,2.7087]
[1735340283210,8.08856712,184.9,184.84,1.5531]
[1735340286811,3.2,184.95,184.84,1.5531]
[1735340287116,3.2,184.95,184.84,4.262]
[1735340287310,8.08856712,184.9,184.84,4.262]
[1735340290218,8.08856712,184.9,184.84,1.5531]
[1735340293423,8.08856712,184.88,184.84,1.5531]
[1735340296327,8.08856712,184.88,184.83,2.709]
[1735340303537,8.08856712,184.86,184.79,3.1663]
[1735340304835,8.08856712,184.84,184.79,3.1663]
[1735340305030,2.7092,184.82,184.79,5.8759]
[1735340306039,2.7091,184.83,184.79,5.8759]
[1735340306829,2.7093,184.82,184.79,3.1663]
[1735340307334,8.08856712,184.82,184.73,7.47569131]
[1735340307530,8.08856712,184.82,184.74,11.22856712]
[1735340308633,2.7095,184.8,184.76,2.7101]
[1735340318844,2.7095,184.8,184.77,2.7099]
[1735340322534,10.79796712,184.81,184.77,2.7099]
[1735340323241,2.7094,184.81,184.77,2.7099]
[1735340332444,2.709,184.84,184.76,8.08856712]
[1735340332646,33.21282146,184.89,184.78,8.08856712]
[1735340332950,8.08856712,184.86,184.79,6.3497]
[1735340333150,8.08856712,184.86,184.8,8.08856712]
[1735340334446,8.08856712,184.86,184.83,2.7089]
[1735340336150,8.08856712,184.86,184.84,2.7089]
[1735340336350,10.79696712,184.88,184.84,2.7089]
[1735340336551,8.08856712,184.88,184.8,8.08856712]
[1735340337150,35.92102146,184.89,184.8,8.08856712]
[1735340337351,8.08856712,184.88,184.8,8.08856712]
[1735340338347,2.7081,184.9,184.82,8.08856712]
[1735340338543,10.79666712,184.9,184.82,8.08856712]
[1735340339046,8.08856712,184.9,184.82,8.08856712]
[1735340339246,8.08856712,184.9,184.87,2.7084]
[1735340341349,1.99610942,184.92,184.85,3.1]
[1735340341549,10.08467654,184.92,184.9,2.708]
[1735340342151,8.08856712,184.92,184.9,2.708]
[1735340347057,8.08856712,184.92,184.89,2.7081]
[1735340348560,10.79636712,184.92,184.89,2.7081]
[1735340351760,10.79636712,184.92,184.88,2.7083]
[1735340357665,2.7079,184.91,184.88,2.7083]
[1735340366175,1.94763318,185.0,184.88,2.7083]
[1735340366376,8.08856712,184.93,184.88,2.7083]
[1735340367476,2.7078,184.92,184.88,2.7083]
[1735340368365,2.7079,184.91,184.88,2.7083]
[1735340371979,2.7078,184.92,184.88,2.7083]
[1735340372180,10.79636712,184.92,184.88,2.7083]
[1735340375381,10.79636712,184.92,184.87,2.7084]
[1735340375382,2.7079,184.91,184.87,2.7084]
[1735340379791,2.7079,184.91,184.88,2.7083]
[1735340380495,8.08856712,184.92,184.86,3.2923]
[1735340380794,8.08856712,184.92,184.87,2.7085]
[1735340381696,10.79636712,184.92,184.87,2.7085]
[1735340381893,1.94763318,185.0,184.86,3.2923]
[1735340381894,8.08856712,184.88,184.86,1.6055]
[1735340382095,8.08856712,184.88,184.85,3.1]
[1735340382298,10.79706712,184.88,184.85,3.1]
[1735340384499,10.79706712,184.88,184.84,2.7089]
[1735340384700,10.79706712,184.88,184.81,1.6686]
[1735340384701,2.7085,184.87,184.81,1.6686]
[1735340384895,1.6888,184.95,184.81,1.6686]
[1735340384896,8.08856712,184.86,184.82,3.1]
[1735340385596,2.7088,184.85,184.82,3.1]
[1735340385900,8.08856712,184.86,184.82,3.1]
[1735340386296,8.08856712,184.84,184.8,3.1]
[1735340387598,10.79756712,184.84,184.8,3.1]
[1735340388199,10.79756712,184.84,184.79,5.8096]
[1735340391304,10.79756712,184.84,184.79,3.1]
[1735340391601,2.709,184.84,184.8,2.7095]
[1735340395804,2.709,184.84,184.79,13.89816712]
[1735340401114,2.709,184.84,184.79,2.7096]
[1735340401316,10.79756712,184.84,184.79,2.7096]
[1735340401721,8.08856712,184.84,184.77,3.1]
[1735340402311,2.7091,184.83,184.78,2.7097]
[1735340403211,2.7091,184.83,184.77,3.1]
[1735340403418,2.7091,184.83,184.79,2.7096]
[1735340404309,2.7094,184.81,184.76,1.6845]
[1735340405322,8.08856712,184.82,184.75,3.1]
[1735340405521,2.7095,184.8,184.76,2.71]
[1735340406321,2.7097,184.79,184.73,3.1]
[1735340408417,2.7097,184.79,184.75,2.7102]
[1735340409021,8.08856712,184.81,184.75,2.7102]
[1735340409218,10.79806712,184.81,184.75,2.7102]
[1735340409619,8.08856712,184.81,184.75,2.7102]
[1735340409919,2.7096,184.8,184.75,2.7102]
[1735340410825,1.5571,184.85,184.76,8.08856712]
[1735340411026,0.1613,184.93,184.76,8.08856712]
[1735340411228,8.08856712,184.84,184.76,8.08856712]
[1735340411432,8.08856712,184.84,184.8,2.7094]
[1735340412222,1.6799,184.92,184.8,8.08856712]
[1735340412419,8.08856712,184.88,184.8,8.08856712]
[1735340413628,10.79706712,184.88,184.83,2.709]
[1735340414929,1.6799,184.92,184.8,8.08856712]
[1735340415128,8.08856712,184.89,184.85,2.7086]
[1735340417240,8.08856712,184.91,184.84,11.18856712]
[1735340417539,1.6461,185.03,184.84,11.18856712]
[1735340417736,8.08856712,184.93,184.89,2.708]
[1735340417929,3.1,185.0,184.89,3.1]
[1735340418239,8.08856712,184.94,184.89,3.1]
[1735340418935,8.08856712,184.94,184.91,2.7079]
[1735340419134,8.08856712,184.94,184.89,3.1]
[1735340420535,1.6461,185.03,184.89,3.1]
[1735340420736,8.08856712,184.97,184.9,9.79006712]
[1735340421131,10.79566712,184.97,184.92,2.7077]
[1735340422537,8.08856712,184.95,184.92,2.7077]
[1735340425849,2.7075,184.94,184.9,4.4094]
[1735340426050,8.08856712,184.93,184.89,3.1]
[1735340426249,8.08856712,184.91,184.87,3.1]
[1735340426446,8.08856712,184.89,184.87,3.1]
[1735340426646,8.08856712,184.89,184.85,3.1]
[1735340427350,10.79676712,184.89,184.85,3.1]
[1735340429044,2.7079,184.91,184.85,5.8086]
[1735340429249,10.79646712,184.91,184.85,5.8086]
[1735340430145,2.7081,184.9,184.85,5.8086]
[1735340431854,8.08856712,184.89,184.85,2.7086]
[1735340433647,10.79686712,184.89,184.84,2.7089]
[1735340433853,10.79686712,184.89,184.84,5.8089]
[1735340434660,8.08856712,184.87,184.84,2.7089]
[1735340448271,8.08856712,184.88,184.84,2.7089]
[1735340453464,10.79686712,184.88,184.84,2.7089]
[1735340458777,8.08856712,184.88,184.83,3.1]
[1735340458976,8.08856712,184.86,184.83,3.1]
[1735340460385,8.08856712,184.86,184.83,5.809]
[1735340461680,8.08856712,184.86,184.83,3.1]
[1735340464481,2.7089,184.85,184.8,2.7095]
[1735340464683,2.7089,184.85,184.8,5.8095]
[1735340465680,2.7089,184.85,184.8,2.7095]
[1735340465887,8.08856712,184.82,184.78,9.16109131]
[1735340466082,8.08856712,184.8,184.78,7.47569131]
[1735340466493,8.08856712,184.8,184.77,7.47569131]
[1735340466681,10.79806712,184.8,184.77,7.47569131]
[1735340467485,10.79806712,184.8,184.75,2.7101]
[1735340468982,2.7095,184.8,184.75,2.7101]
[1735340469185,8.08856712,184.79,184.75,2.7101]
[1735340470489,8.08856712,184.77,184.7,4.9007]
[1735340470690,8.08856712,184.75,184.7,4.7142]
[1735340470990,8.08856712,184.73,184.68,116.28498219]
[1735340471188,2.03429316,184.84,184.68,116.28498219]
[1735340471189,8.08856712,184.71,184.68,63.16986578]
[1735340471490,8.08856712,184.71,184.68,60.06986578]
[1735340471793,8.08856712,184.71,184.66,93.20479867]
[1735340471794,8.08856712,184.71,184.66,32.95932473]
[1735340472288,8.08856712,184.71,184.67,2.7114]
[1735340475795,2.7107,184.73,184.67,2.7114]
[1735340476092,8.08856712,184.7,184.67,2.7114]
[1735340476594,8.08856712,184.7,184.65,4.2902]
[1735340477390,8.08856712,184.68,184.65,1.5785]
[1735340478391,8.08856712,184.66,184.6,3.3106]
[1735340478594,8.08856712,184.64,184.6,3.3106]
[1735340478888,8.08856712,184.64,184.59,3.1]
[1735340479192,8.08856712,184.62,184.6,2.7123]
[1735340480298,8.08856712,184.62,184.52,7.47569131]
[1735340480597,8.08856712,184.6,184.55,3.1]
[1735340480791,8.08856712,184.58,184.55,3.1]
[1735340481098,8.08856712,184.58,184.56,2.713]
[1735340482794,8.08856712,184.58,184.54,9.0813]
[1735340485495,8.08856712,184.58,184.54,3.1]
[1735340488697,8.08856712,184.56,184.54,3.1]
[1735340489094,8.08856712,184.58,184.54,5.8133]
[1735340494796,2.7126,184.6,184.54,3.1]
[1735340495098,8.08856712,184.58,184.55,2.7131]
[1735340495797,8.08856712,184.58,184.54,3.1]
[1735340496001,2.7121,184.63,184.55,8.08856712]
[1735340496300,1.6257,184.69,184.57,8.08856712]
[1735340496502,8.08856712,184.64,184.57,8.08856712]
[1735340496697,8.08856712,184.66,184.59,8.08856712]
[1735340496904,8.08856712,184.66,184.61,2.7122]
[1735340497202,8.08856712,184.64,184.6,4.7663]
[1735340498301,8.08856712,184.64,184.61,2.7123]
[1735340500503,2.7114,184.67,184.61,2.7123]
[1735340500707,8.08856712,184.65,184.61,2.7123]
[1735340501600,8.08856712,184.65,184.62,2.7121]
[1735340502199,3.1,184.73,184.6,4.7663]
[1735340502402,8.08856712,184.65,184.63,2.712]
[1735340502904,8.08856712,184.65,184.61,2.7123]
[1735340503102,8.08856712,184.63,184.6,4.7663]
[1735340503602,8.08856712,184.61,184.6,1.6663]
[1735340503800,8.08856712,184.61,184.55,29.85932473]
[1735340503997,8.08856712,184.61,184.57,3.1]
[1735340504400,8.08856712,184.61,184.57,5.8127]
[1735340504603,2.712,184.63,184.57,5.8127]
[1735340504905,8.08856712,184.6,184.57,5.8127]
[1735340505402,8.08856712,184.6,184.58,2.7127]
[1735340512605,8.08856712,184.6,184.57,5.8129]
[1735340514207,8.08856712,184.62,184.57,3.1]
[1735340514400,8.08856712,184.65,184.59,8.08856712]
[1735340514604,8.08856712,184.65,184.6,1.6637]
[1735340515009,8.08856712,184.67,184.6,4.9298]
[1735340515315,8.08856712,184.67,184.61,8.08856712]
[1735340515507,8.08856712,184.67,184.64,2.7118]
[1735340515705,2.7111,184.7,184.62,3.1]
[1735340515904,8.08856712,184.68,184.62,3.1]
[1735340516213,8.08856712,184.68,184.64,2.7118]
[1735340516407,8.08856712,184.68,184.63,47.32118458]
[1735340516814,8.08856712,184.68,184.62,3.1]
[1735340517414,8.08856712,184.68,184.64,2.7117]
[1735340517611,2.7111,184.7,184.64,2.7117]
[1735340517814,8.08856712,184.69,184.64,2.7117]
[1735340518712,8.08856712,184.69,184.62,3.1]
[1735340518713,8.08856712,184.69,184.63,8.08856712]
[1735340519310,8.08856712,184.69,184.64,2.7117]
[1735340519608,8.08856712,184.69,184.63,8.08856712]
[1735340520005,2.7108,184.71,184.66,2.7115]
[1735340520212,8.08856712,184.7,184.67,3.1]
[1735340520710,10.79956712,184.7,184.67,3.1]
[1735340521219,8.08856712,184.7,184.67,3.1]
[1735340523812,1.535,184.8,184.67,3.1]
[1735340524122,8.08856712,184.75,184.68,4.8783]
[1735340524617,8.08856712,184.75,184.69,8.08856712]
[1735340525208,34.97075236,184.81,184.69,8.08856712]
[1735340525417,8.08856712,184.77,184.74,2.7102]
[1735340525617,2.7096,184.8,184.75,3.1]
[1735340525918,8.08856712,184.78,184.75,3.1]
[1735340527111,8.08856712,184.76,184.75,3.1]
[1735340528513,10.79866712,184.76,184.75,3.1]
[1735340528914,8.08856712,184.76,184.75,3.1]
[1735340529212,8.08856712,184.76,184.7,2.7109]
[1735340529414,8.08856712,184.72,184.68,4.8783]
[1735340529616,8.08856712,184.72,184.69,3.1]
[1735340530319,10.79926712,184.72,184.69,3.1]
[1735340532017,8.08856712,184.72,184.69,3.1]
[1735340532417,8.08856712,184.7,184.69,3.1]
[1735340532722,8.08856712,184.7,184.68,1.5508]
[1735340532723,8.08856712,184.72,184.68,4.6508]
[1735340532920,8.08856712,184.7,184.68,4.6508]
[1735340534021,8.08856712,184.7,184.68,3.1]
[1735340535314,1.7036,184.8,184.68,3.1]
[1735340535522,8.08856712,184.75,184.68,3.1]
[1735340535925,10.79896712,184.75,184.69,2.711]
[1735340536818,2.7099,184.78,184.69,8.08856712]
[1735340537021,8.08856712,184.76,184.7,3.2176]
[1735340537519,8.08856712,184.78,184.71,9.73306712]
[1735340539525,8.08856712,184.78,184.74,2.7104]
[1735340539725,8.08856712,184.78,184.75,3.1]
[1735340540123,8.08856712,184.78,184.75,5.8102]
[1735340545031,10.79816712,184.8,184.75,5.8102]
[1735340546031,8.08856712,184.8,184.75,5.8102]
[1735340547432,10.79806712,184.8,184.75,5.8102]
[1735340549927,2.03429316,184.84,184.75,3.1]
[1735340550132,8.08856712,184.83,184.75,11.18856712]
[1735340551430,8.08856712,184.83,184.78,2.7097]
[1735340553435,10.79766712,184.83,184.78,2.7097]
[1735340555934,2.7091,184.83,184.78,2.7097]
[1735340556235,10.79766712,184.83,184.78,2.7097]
[1735340557835,2.7091,184.83,184.78,2.7097]
[1735340559234,37.71751417,184.92,184.81,8.08856712]
[1735340559428,88.31342151,184.98,184.83,8.08856712]
[1735340559429,8.08856712,184.9,184.83,8.08856712]
[1735340559635,8.08856712,184.9,184.84,3.1]
[1735340559928,8.08856712,184.9,184.86,2.7085]
[1735340560930,8.08856712,184.9,184.84,3.1]
[1735340561235,8.08856712,184.95,184.87,8.08856712]
[1735340561435,8.08856712,184.98,184.91,8.08856712]
[1735340561634,3.1,185.04,184.92,3.1]
[1735340561829,8.08856712,185.0,184.93,8.08856712]
[1735340562037,1.6075,185.05,184.95,8.08856712]
[1735340562232,8.08856712,185.05,184.97,8.08856712]
[1735340562433,8.08856712,185.05,184.99,8.08856712]
[1735340562740,8.08856712,185.05,184.99,10.79526712]
[1735340562938,8.08856712,185.06,184.99,8.08856712]
[1735340563835,1.6075,185.11,184.99,8.08856712]
[1735340564041,8.08856712,185.08,185.03,2.7061]
[1735340564238,8.08856712,185.1,185.04,3.08]
[1735340564638,8.08856712,185.12,185.06,2.7057]
[1735340564932,8.08856712,185.13,185.05,8.08856712]
[1735340565138,8.08856712,185.13,185.07,8.08856712]
[1735340565735,12.62408513,185.17,185.05,12.62408513]
[1735340566138,12.62408513,185.17,185.08,2.7054]
[1735340566336,12.62408513,185.14,185.07,3.08]
[1735340566535,12.62408513,185.14,185.07,3.1]
[1735340567041,12.62408513,185.14,185.05,3.1]
[1735340567639,12.62408513,185.17,185.05,15.72408513]
[1735340567843,12.62408513,185.17,185.08,2.7054]
[1735340568637,12.62408513,185.14,185.02,12.62408513]
[1735340568943,12.62408513,185.11,185.03,3.1]
[1735340569743,1.598,185.18,185.03,3.1]
[1735340570038,12.62408513,185.16,185.03,3.1]
[1735340571041,12.62408513,185.16,185.07,2.7055]
[1735340571241,12.62408513,185.16,185.08,3.1]
[1735340571644,3.1,185.27,185.08,15.72408513]
[1735340571843,12.62408513,185.21,185.09,1.5405]
[1735340572046,12.62408513,185.17,185.09,1.5405]
[1735340572341,12.62408513,185.14,185.09,3.1]
[1735340578149,12.62408513,185.11,185.03,3.1]
[1735340578342,12.62408513,185.11,185.0,1.548]
[1735340578543,12.62408513,185.08,185.01,3.1]
[1735340579448,0.1566,185.12,185.01,3.1]
[1735340579647,12.78068513,185.12,185.01,3.1]
[1735340580046,12.78068513,185.12,185.04,2.706]
[1735340582051,12.78068513,185.12,185.03,2.7061]
[1735340583054,12.78068513,185.12,185.0,1.548]
[1735340583249,12.62408513,185.09,185.0,1.548]
[1735340583453,12.62408513,185.06,184.98,3.1]
[1735340584457,12.62408513,185.06,184.98,5.8069]
[1735340584653,12.62408513,185.06,184.97,3.1]
[1735340585255,1.5411,185.08,184.97,3.1]
[1735340585454,1.5411,185.08,185.0,2.7065]
[1735340585655,1.5411,185.08,184.97,3.1]
[1735340586249,1.5411,185.08,184.95,12.62408513]
[1735340586454,12.62408513,185.06,184.96,3.1]
[1735340586758,1.5411,185.08,184.96,3.1]
[1735340586759,2.7067,185.0,184.96,3.1]
[1735340586965,12.62408513,185.03,184.96,3.1]
[1735340587161,12.62408513,185.06,184.96,3.1]
[1735340587461,1.5411,185.08,184.96,3.1]
[1735340587867,12.62408513,185.1,184.98,12.62408513]
[1735340589561,2.7054,185.08,185.02,2.7061]
[1735340589760,2.7054,185.08,185.03,3.1]
[1735340589951,12.62408513,185.1,185.03,3.1]
[1735340590858,12.62408513,185.13,185.03,3.1]
[1735340593262,1.6498,185.14,185.03,3.1]
[1735340593460,12.62408513,185.16,185.03,3.1]
[1735340593660,12.62408513,185.16,185.04,12.62408513]
[1735340593863,15.32838513,185.16,185.1,2.7051]
[1735340594160,15.32838513,185.16,185.11,3.1]
[1735340594361,12.62408513,185.16,185.11,3.1]
[1735340595159,38.73052214,185.18,185.06,7.50612757]
[1735340595160,12.62408513,185.13,185.07,7.50612757]
[1735340595963,2.7051,185.1,185.04,13.31202757]
[1735340596463,2.7051,185.1,185.04,10.60612757]
[1735340596857,2.7051,185.1,185.05,51.76875444]
[1735340597157,2.705,185.11,185.05,54.47445444]
[1735340597365,12.62408513,185.13,185.05,51.76875444]
[1735340597860,12.62408513,185.13,185.06,4.34884883]
[1735340598061,12.62408513,185.16,185.06,4.34884883]
[1735340598660,12.62408513,185.16,185.1,7.50612757]
[1735340599369,2.7046,185.14,185.1,7.50612757]
[1735340599670,12.62408513,185.16,185.1,7.50612757]
[1735340599870,12.62408513,185.13,185.1,7.50612757]
[1735340600259,2.705,185.11,185.1,7.50612757]
[1735340600466,12.62408513,185.13,185.06,3.16]
[1735340600861,12.62408513,185.16,185.1,2.7051]
[1735340602065,12.62408513,185.16,185.08,32.72991029]
[1735340602268,12.62408513,185.13,185.09,7.50612757]
[1735340602970,2.7052,185.1,185.09,7.50612757]
[1735340603571,2.7052,185.1,185.06,3.16]
[1735340604471,2.7052,185.1,185.06,5.8657]
[1735340606473,12.62408513,185.1,185.03,30.02451029]
[1735340606672,12.62408513,185.07,185.03,30.02451029]
[1735340607174,12.62408513,185.07,185.02,30.02451029]
[1735340607478,2.7061,185.04,185.02,30.02451029]
[1735340607675,12.62408513,185.07,185.02,30.02451029]
[1735340608773,12.62408513,185.07,185.0,3.16]
[1735340608967,2.7058,185.06,185.02,2.7062]
[1735340609769,2.7055,185.08,185.04,2.706]
[1735340610873,2.7056,185.07,185.03,2.7061]
[1735340611372,12.62408513,185.1,185.0,3.16]
[1735340611675,1.7951,185.12,185.0,3.16]
[1735340611676,12.62408513,185.07,185.0,3.16]
[1735340612169,2.7061,185.04,185.0,5.8666]
[1735340614572,2.7059,185.05,185.01,2.7064]
[1735340614976,2.7059,185.05,185.01,5.8664]
[1735340616677,2.7059,185.05,185.01,3.16]
[1735340621683,2.7059,185.05,185.0,2.7065]
[1735340621880,12.62408513,185.04,184.95,1.6686]
[1735340622086,12.62408513,185.01,184.93,36.34381029]
[1735340622380,2.707,184.98,184.93,35.89131029]
[1735340622584,2.707,184.98,184.93,39.05131029]
[1735340622782,2.707,184.98,184.93,36.34381029]
[1735340622984,2.707,184.98,184.94,2.7074]
[1735340623184,12.62408513,185.04,184.93,6.3193]
[1735340623789,12.62408513,185.04,184.99,2.7067]
[1735340623986,12.62408513,185.04,184.99,5.8667]
[1735340625581,15.33008513,185.04,184.99,5.8667]
[1735340627083,2.7064,185.01,184.97,2.7069]
[1735340627390,12.62408513,185.01,184.94,3.14]
[1735340628487,2.7069,184.98,184.94,3.14]
[1735340628686,12.62408513,185.01,184.94,3.14]
[1735340629186,12.62408513,185.01,184.9,1.5341]
[1735340629187,12.62408513,184.98,184.9,1.5341]
[1735340629388,12.62408513,184.98,184.91,3.14]
[1735340629787,12.62408513,184.98,184.91,5.8479]
[1735340629788,2.7072,184.96,184.91,5.8479]
[1735340632187,12.62408513,184.98,184.91,3.14]
[1735340632188,2.7073,184.95,184.91,3.14]